[Event "44th Chess Olympiad Women 2022"]
[Site "Chennai"]
[Date "2022.08.06"]
[Round "8.38"]
[White "Ptacnikova, Lenka"]
[Black "Mazariegos, Silvia Carolina"]
[Result "1-0"]
[WhiteElo "2066"]
[BlackElo "1851"]
[Annotator "NA RC"]
[PlyCount "81"]
[EventDate "2022.??.??"]
[TimeControl "60"]

1. e4 {[%emt 0:00:01]} e5 {[%emt 0:00:18]} 2. Nf3 {[%emt 0:00:05]} Qe7 {
[%emt 0:00:13]} 3. Bc4 {[%emt 0:10:04]} h6 {[%emt 0:00:21]} 4. Nc3 {[%emt 0:00:
00]} c6 {[%emt 0:00:27]} 5. a4 {[%emt 0:01:08]} a5 {[%emt 0:03:07]} 6. O-O {
[%emt 0:02:49]} Nf6 {[%emt 0:00:24]} 7. Re1 {[%emt 0:10:45]} d6 {[%emt 0:00:29]
} 8. d4 {[%emt 0:20:20]} Qc7 {[%emt 0:02:08]} 9. h3 {[%emt 0:01:42]} Be7 {
[%emt 0:01:10]} 10. Qe2 {[%emt 0:03:11]} Nbd7 {[%emt 0:08:47]} 11. Ba2 {
[%emt 0:06:12]} Nf8 {[%emt 0:16:44]} 12. Qc4 {[%emt 0:10:24]} Bd8 {[%emt 0:00:
00]} 13. Be3 {[%emt 0:09:32]} Be6 {[%emt 0:23:17]} 14. Qd3 {[%emt 0:00:24]}
Bxa2 {[%emt 0:00:38]} 15. Rxa2 {[%emt 0:00:06]} g5 {[%emt 0:00:23]} 16. Ne2 {
[%emt 0:07:39]} Nh5 {[%emt 0:04:14]} 17. g3 {[%emt 0:01:53]} Qe7 {[%emt 0:00:
00]} 18. dxe5 {[%emt 0:01:21]} dxe5 {[%emt 0:00:33]} 19. Ra3 {[%emt 0:00:07]}
Ng6 {[%emt 0:03:22]} 20. Rb3 {[%emt 0:00:40]} Qe6 {[%emt 0:02:00]} 21. Rxb7 {
[%emt 0:02:34]} Qxh3 {[%emt 0:01:02]} 22. Qd6 {[%emt 0:00:29]} Qc8 {[%emt 0:00:
00]} 23. Rb3 {[%emt 0:00:50]} Be7 {[%emt 0:00:33]} 24. Qd3 {[%emt 0:00:20]}
Ngf4 {[%emt 0:07:07]} 25. Bxf4 {[%emt 0:00:49]} gxf4 {[%emt 0:01:56]} 26. Nxe5
{[%emt 0:00:48]} fxg3 {[%emt 0:00:27]} 27. fxg3 {[%emt 0:00:18]} Bc5+ {[%emt 0:
00:00]} 28. Kh2 {[%emt 0:00:31]} Qe6 {[%emt 0:00:15]} 29. Nc4 {[%emt 0:00:45]}
Rd8 {[%emt 0:00:37]} 30. Qc3 {[%emt 0:00:15]} Rg8 {[%emt 0:02:05]} 31. Qe5 {
[%emt 0:00:25]} Qxe5 {[%emt 0:01:16]} 32. Nxe5 {[%emt 0:00:03]} Bd6 {[%emt 0:
00:00]} 33. Nxc6 {[%emt 0:00:16]} Rc8 {[%emt 0:00:01]} 34. Ncd4 {[%emt 0:00:27]
} Rg4 {[%emt 0:01:07]} 35. Nf5 {[%emt 0:00:40]} Be5 {[%emt 0:00:17]} 36. Ned4 {
[%emt 0:00:56]} Rc4 {[%emt 0:00:32]} 37. Rd3 {[%emt 0:00:59]} Rxa4 {[%emt 0:00:
00]} 38. Nc6 {[%emt 0:00:16]} Bc7 {[%emt 0:00:21]} 39. Red1 {[%emt 0:00:21]} f6
{[%emt 0:00:41]} 40. Rd8+ {[%emt 0:00:18]} Bxd8 {[%emt 0:01:04]} 41. Rxd8+ {
[%emt 0:30:05]} 1-0

[Event "44th Chess Olympiad Women 2022"]
[Site "Chennai"]
[Date "2022.08.06"]
[Round "8.38"]
[White "Thorsteinsdottir, Hallgerdur"]
[Black "Natareno, Elvia"]
[Result "1-0"]
[WhiteElo "1934"]
[BlackElo "1581"]
[Annotator "NA RC"]
[PlyCount "95"]
[EventDate "2022.??.??"]
[TimeControl "60"]

1. e4 {[%emt 0:00:07]} c5 {[%emt 0:00:23]} 2. Nf3 {[%emt 0:00:18]} Nc6 {
[%emt 0:00:34]} 3. c3 {[%emt 0:00:22]} g6 {[%emt 0:01:00]} 4. d4 {[%emt 0:00:
00]} cxd4 {[%emt 0:00:17]} 5. cxd4 {[%emt 0:00:19]} Bg7 {[%emt 0:00:43]} 6. Nc3
{[%emt 0:00:26]} d6 {[%emt 0:00:13]} 7. Bc4 {[%emt 0:02:25]} Nf6 {[%emt 0:00:
00]} 8. h3 {[%emt 0:02:55]} O-O {[%emt 0:01:33]} 9. O-O {[%emt 0:01:16]} Bd7 {
[%emt 0:02:07]} 10. b3 {[%emt 0:05:16]} Rc8 {[%emt 0:09:12]} 11. Bb2 {[%emt 0:
00:00]} a6 {[%emt 0:01:29]} 12. Rc1 {[%emt 0:14:39]} Qb6 {[%emt 0:07:39]} 13.
e5 {[%emt 0:03:49]} Ne8 {[%emt 0:05:50]} 14. Nd5 {[%emt 0:05:07]} Qd8 {[%emt 0:
00:00]} 15. Re1 {[%emt 0:03:22]} e6 {[%emt 0:03:52]} 16. Ne3 {[%emt 0:02:15]}
d5 {[%emt 0:01:41]} 17. Bd3 {[%emt 0:00:43]} Nc7 {[%emt 0:01:07]} 18. Ng4 {
[%emt 0:08:30]} h5 {[%emt 0:04:39]} 19. Ngh2 {[%emt 0:03:19]} Bh6 {[%emt 0:00:
00]} 20. g4 {[%emt 0:04:24]} hxg4 {[%emt 0:07:50]} 21. Nxg4 {[%emt 0:00:46]}
Bg7 {[%emt 0:04:16]} 22. Qd2 {[%emt 0:01:16]} Nb5 {[%emt 0:09:18]} 23. a4 {
[%emt 0:05:32]} Nba7 {[%emt 0:00:31]} 24. Qf4 {[%emt 0:02:34]} f6 {[%emt 0:00:
00]} 25. exf6 {[%emt 0:05:56]} Bxf6 {[%emt 0:00:20]} 26. Ba3 {[%emt 0:14:59]}
Bg5 {[%emt 0:03:47]} 27. Qxg5 {[%emt 0:01:29]} Qxg5 {[%emt 0:00:40]} 28. Nxg5 {
[%emt 0:00:08]} Rfd8 {[%emt 0:00:26]} 29. Bc5 {[%emt 0:02:02]} Kg7 {[%emt 0:00:
00]} 30. Nxe6+ {[%emt 0:00:32]} Bxe6 {[%emt 0:00:08]} 31. Rxe6 {[%emt 0:00:15]}
Re8 {[%emt 0:00:35]} 32. Rxg6+ {[%emt 0:00:41]} Kh8 {[%emt 0:00:32]} 33. Rh6+ {
[%emt 0:00:54]} Kg8 {[%emt 0:03:14]} 34. Nf6+ {[%emt 0:00:21]} Kg7 {[%emt 0:00:
00]} 35. Rg6+ {[%emt 0:00:14]} Kf7 {[%emt 0:00:29]} 36. Nxe8 {[%emt 0:00:19]}
Rxe8 {[%emt 0:00:10]} 37. Rg3 {[%emt 0:00:18]} Re6 {[%emt 0:00:27]} 38. Bxa7 {
[%emt 0:00:28]} Nxa7 {[%emt 0:00:15]} 39. Rc7+ {[%emt 0:00:08]} Kf8 {[%emt 0:
00:00]} 40. Bh7 {[%emt 0:00:33]} Re7 {[%emt 0:00:30]} 41. Rxe7 {[%emt 0:30:11]}
Kxe7 {[%emt 0:30:10]} 42. Rg7+ {[%emt 0:00:06]} Kd6 {[%emt 0:00:05]} 43. Rxb7 {
[%emt 0:00:10]} Nc6 {[%emt 0:00:04]} 44. Rb6 {[%emt 0:00:23]} Kc7 {[%emt 0:00:
00]} 45. Rxc6+ {[%emt 0:00:12]} Kxc6 {[%emt 0:00:06]} 46. h4 {[%emt 0:00:33]}
Kd6 {[%emt 0:00:14]} 47. h5 {[%emt 0:00:28]} Ke7 {[%emt 0:00:07]} 48. Bg8 {
[%emt 0:00:12]} 1-0

[Event "44th Chess Olympiad Women 2022"]
[Site "Chennai"]
[Date "2022.08.06"]
[Round "8.39"]
[White "Castillo Beitia, Ashley Alexandra"]
[Black "Montiel Caceres, Helen"]
[Result "0-1"]
[WhiteElo "1587"]
[BlackElo "1763"]
[Annotator "NA RC"]
[PlyCount "104"]
[EventDate "2022.??.??"]
[TimeControl "60"]

1. d4 {[%emt 0:00:03]} Nf6 {[%emt 0:00:05]} 2. c4 {[%emt 0:00:07]} e6 {[%emt 0:
00:00]} 3. Nf3 {[%emt 0:00:06]} d5 {[%emt 0:00:06]} 4. Nc3 {[%emt 0:00:42]} Bb4
{[%emt 0:00:10]} 5. Qa4+ {[%emt 0:00:36]} Nc6 {[%emt 0:00:10]} 6. Bg5 {[%emt 0:
00:00]} O-O {[%emt 0:00:11]} 7. e3 {[%emt 0:01:34]} Be7 {[%emt 0:01:22]} 8. Be2
{[%emt 0:07:07]} Nb8 {[%emt 0:16:55]} 9. O-O {[%emt 0:09:06]} Nbd7 {[%emt 0:00:
00]} 10. Qc2 {[%emt 0:03:20]} b6 {[%emt 0:01:58]} 11. Rac1 {[%emt 0:09:44]} c5
{[%emt 0:01:18]} 12. Rfd1 {[%emt 0:01:55]} cxd4 {[%emt 0:04:17]} 13. Nxd4 {
[%emt 0:02:47]} Bb7 {[%emt 0:00:17]} 14. cxd5 {[%emt 0:03:14]} Nxd5 {[%emt 0:
00:00]} 15. Bxe7 {[%emt 0:02:05]} Qxe7 {[%emt 0:00:06]} 16. Bf3 {[%emt 0:05:16]
} Rac8 {[%emt 0:00:35]} 17. Qd2 {[%emt 0:11:57]} N7f6 {[%emt 0:02:42]} 18. Nxd5
{[%emt 0:04:45]} Nxd5 {[%emt 0:01:38]} 19. Qd3 {[%emt 0:05:22]} Qb4 {[%emt 0:
00:00]} 20. Nb3 {[%emt 0:03:44]} Qa4 {[%emt 0:02:17]} 21. Rxc8 {[%emt 0:07:04]}
Rxc8 {[%emt 0:00:07]} 22. Rc1 {[%emt 0:01:41]} Rxc1+ {[%emt 0:02:48]} 23. Nxc1
{[%emt 0:00:07]} g6 {[%emt 0:01:30]} 24. h3 {[%emt 0:03:00]} Qa5 {[%emt 0:00:
00]} 25. Qd1 {[%emt 0:01:56]} Bc6 {[%emt 0:10:17]} 26. a3 {[%emt 0:02:50]} Qb5
{[%emt 0:04:07]} 27. Qc2 {[%emt 0:00:53]} Bb7 {[%emt 0:03:23]} 28. Nd3 {
[%emt 0:02:01]} a5 {[%emt 0:00:43]} 29. Kf1 {[%emt 0:02:28]} e5 {[%emt 0:02:18]
} 30. a4 {[%emt 0:01:42]} Qa6 {[%emt 0:00:56]} 31. Be2 {[%emt 0:00:18]} Qa8 {
[%emt 0:01:43]} 32. Nxe5 {[%emt 0:01:50]} Nb4 {[%emt 0:00:10]} 33. Qc7 {
[%emt 0:00:24]} Bxg2+ {[%emt 0:00:51]} 34. Ke1 {[%emt 0:01:10]} Qe8 {[%emt 0:
00:00]} 35. Bb5 {[%emt 0:03:16]} Qe6 {[%emt 0:00:44]} 36. Bc4 {[%emt 0:00:51]}
Bd5 {[%emt 0:03:30]} 37. Nd7 {[%emt 0:00:41]} h5 {[%emt 0:05:34]} 38. Qd8+ {
[%emt 0:01:46]} Kg7 {[%emt 0:00:34]} 39. Bxd5 {[%emt 0:00:42]} Nxd5 {[%emt 0:
00:00]} 40. Qf8+ {[%emt 0:00:34]} Kh7 {[%emt 0:00:11]} 41. Qd8 {[%emt 0:30:26]}
Kh6 {[%emt 0:31:57]} 42. h4 {[%emt 0:01:07]} Kg7 {[%emt 0:01:15]} 43. Qf8+ {
[%emt 0:00:00]} Kh7 {[%emt 0:00:00]} 44. Qd8 {[%emt 0:00:00]} Qf5 {[%emt 0:00:
00]} 45. Nf8+ {[%emt 0:00:00]} Kg7 {[%emt 0:00:00]} 46. Nd7 {[%emt 0:00:00]}
Nb4 {[%emt 0:00:00]} 47. Qf8+ {[%emt 0:00:00]} Kh7 {[%emt 0:00:00]} 48. Qe7 {
[%emt 0:00:00]} Nd3+ {[%emt 0:00:00]} 49. Kd2 {[%emt 0:00:00]} Nxf2 {[%emt 0:
00:00]} 50. Nf6+ {[%emt 0:00:00]} Kg7 {[%emt 0:00:00]} 51. Ne8+ {[%emt 0:00:00]
} Kg8 {[%emt 0:00:00]} 52. Nf6+ {[%emt 0:00:00]} Qxf6 {[%emt 0:00:00]} 0-1

[Event "44th Chess Olympiad Women 2022"]
[Site "Chennai"]
[Date "2022.08.06"]
[Round "8.39"]
[White "Mayeregger Gonzalez, Renata"]
[Black "Munoz Henriquez, Alba Esther"]
[Result "0-1"]
[WhiteElo "1479"]
[BlackElo "1588"]
[Annotator "NA RC"]
[PlyCount "102"]
[EventDate "2022.??.??"]
[TimeControl "60"]

1. e4 {[%emt 0:00:04]} c6 {[%emt 0:00:05]} 2. c4 {[%emt 0:00:14]} d5 {[%emt 0:
00:00]} 3. cxd5 {[%emt 0:00:17]} cxd5 {[%emt 0:00:06]} 4. exd5 {[%emt 0:00:07]}
Qxd5 {[%emt 0:01:31]} 5. Nc3 {[%emt 0:00:13]} Qd8 {[%emt 0:00:57]} 6. Nf3 {
[%emt 0:01:05]} Nf6 {[%emt 0:00:39]} 7. d4 {[%emt 0:00:18]} e6 {[%emt 0:02:19]}
8. Bd3 {[%emt 0:03:27]} Be7 {[%emt 0:00:32]} 9. O-O {[%emt 0:02:06]} O-O {
[%emt 0:03:44]} 10. Qe2 {[%emt 0:01:42]} Nc6 {[%emt 0:01:31]} 11. Be3 {[%emt 0:
00:00]} Nb4 {[%emt 0:04:20]} 12. Bb1 {[%emt 0:03:52]} b6 {[%emt 0:06:58]} 13.
a3 {[%emt 0:02:21]} Ba6 {[%emt 0:01:23]} 14. Qd2 {[%emt 0:06:26]} Bxf1 {
[%emt 0:04:56]} 15. axb4 {[%emt 0:00:48]} Bc4 {[%emt 0:00:37]} 16. Ne5 {
[%emt 0:02:46]} Bd5 {[%emt 0:03:32]} 17. Bg5 {[%emt 0:03:40]} Bxb4 {[%emt 0:00:
00]} 18. Qd3 {[%emt 0:05:24]} g6 {[%emt 0:00:31]} 19. Nxd5 {[%emt 0:00:31]}
exd5 {[%emt 0:00:25]} 20. Qf3 {[%emt 0:02:29]} Be7 {[%emt 0:06:12]} 21. Bd3 {
[%emt 0:06:29]} Qd6 {[%emt 0:01:57]} 22. Re1 {[%emt 0:04:30]} Nh5 {[%emt 0:00:
00]} 23. Bh6 {[%emt 0:12:38]} Ng7 {[%emt 0:00:17]} 24. Bb5 {[%emt 0:04:21]} a6
{[%emt 0:05:07]} 25. Bc6 {[%emt 0:06:51]} Rad8 {[%emt 0:02:13]} 26. Qe2 {
[%emt 0:08:52]} Bf6 {[%emt 0:00:58]} 27. Ba4 {[%emt 0:06:26]} b5 {[%emt 0:00:
00]} 28. Bc2 {[%emt 0:01:09]} Rfe8 {[%emt 0:01:15]} 29. f4 {[%emt 0:02:06]} Ne6
{[%emt 0:03:07]} 30. Qf2 {[%emt 0:04:01]} Bg7 {[%emt 0:01:04]} 31. Bxg7 {
[%emt 0:02:41]} Kxg7 {[%emt 0:02:34]} 32. f5 {[%emt 0:00:36]} Ng5 {[%emt 0:00:
00]} 33. fxg6 {[%emt 0:01:54]} fxg6 {[%emt 0:02:54]} 34. h4 {[%emt 0:02:00]}
Rf8 {[%emt 0:00:25]} 35. Qe3 {[%emt 0:01:45]} Nf7 {[%emt 0:03:57]} 36. Ng4 {
[%emt 0:00:42]} Rde8 {[%emt 0:02:10]} 37. Ne5 {[%emt 0:00:14]} Qf6 {[%emt 0:00:
00]} 38. Qg3 {[%emt 0:00:40]} Nxe5 {[%emt 0:00:53]} 39. dxe5 {[%emt 0:00:15]}
Qf4 {[%emt 0:00:25]} 40. Qc3 {[%emt 0:00:56]} Qf2+ {[%emt 0:01:21]} 41. Kh1 {
[%emt 0:30:07]} Qxh4+ {[%emt 0:30:11]} 42. Kg1 {[%emt 0:00:07]} d4 {[%emt 0:00:
00]} 43. Qd2 {[%emt 0:01:07]} Qf4 {[%emt 0:00:48]} 44. Qe2 {[%emt 0:00:40]} Re7
{[%emt 0:00:59]} 45. Bd3 {[%emt 0:00:00]} Rfe8 {[%emt 0:00:00]} 46. Qc2 {
[%emt 0:00:00]} Rxe5 {[%emt 0:00:00]} 47. Qc7+ {[%emt 0:00:00]} Kh8 {[%emt 0:
00:00]} 48. Re2 {[%emt 0:00:00]} Qg5 {[%emt 0:00:00]} 49. Rf2 {[%emt 0:00:00]}
Re1+ {[%emt 0:00:00]} 50. Bf1 {[%emt 0:00:00]} Qe3 {[%emt 0:00:00]} 51. Qa5 {
[%emt 0:00:00]} Rxf1+ {[%emt 0:00:00]} 0-1

[Event "44th Chess Olympiad Women 2022"]
[Site "Chennai"]
[Date "2022.08.06"]
[Round "8.39"]
[White "Oviedo Acosta, Paula"]
[Black "Rondon Chacon, Yolys Desiree"]
[Result "1/2-1/2"]
[WhiteElo "1855"]
[BlackElo "1688"]
[Annotator "NA RC"]
[PlyCount "77"]
[EventDate "2022.??.??"]
[TimeControl "60"]

1. e4 {[%emt 0:00:05]} c6 {[%emt 0:00:11]} 2. d4 {[%emt 0:00:13]} d5 {[%emt 0:
00:00]} 3. exd5 {[%emt 0:00:36]} cxd5 {[%emt 0:00:10]} 4. Bd3 {[%emt 0:00:25]}
Nc6 {[%emt 0:00:10]} 5. c3 {[%emt 0:00:34]} g6 {[%emt 0:00:28]} 6. Bf4 {
[%emt 0:01:17]} Nh6 {[%emt 0:01:19]} 7. Nd2 {[%emt 0:01:00]} Bf5 {[%emt 0:00:
00]} 8. Qb1 {[%emt 0:02:05]} Bxd3 {[%emt 0:02:41]} 9. Qxd3 {[%emt 0:00:09]} e6
{[%emt 0:01:49]} 10. Ngf3 {[%emt 0:01:40]} Bg7 {[%emt 0:06:41]} 11. h4 {
[%emt 0:04:11]} Qd7 {[%emt 0:13:47]} 12. h5 {[%emt 0:04:48]} Nf5 {[%emt 0:00:
00]} 13. Nb3 {[%emt 0:05:26]} b6 {[%emt 0:04:51]} 14. hxg6 {[%emt 0:02:55]}
hxg6 {[%emt 0:01:41]} 15. Rxh8+ {[%emt 0:02:44]} Bxh8 {[%emt 0:00:07]} 16. a4 {
[%emt 0:00:55]} Bf6 {[%emt 0:16:01]} 17. a5 {[%emt 0:11:51]} Qb7 {[%emt 0:00:
00]} 18. Qb5 {[%emt 0:03:27]} O-O-O {[%emt 0:07:40]} 19. g4 {[%emt 0:10:37]}
Nd6 {[%emt 0:02:33]} 20. Bxd6 {[%emt 0:06:47]} Rxd6 {[%emt 0:00:07]} 21. g5 {
[%emt 0:00:38]} Bd8 {[%emt 0:06:39]} 22. axb6 {[%emt 0:05:22]} Qxb6 {[%emt 0:
00:00]} 23. Qxb6 {[%emt 0:00:21]} axb6 {[%emt 0:00:04]} 24. Ke2 {[%emt 0:01:35]
} Rd7 {[%emt 0:08:29]} 25. Kd3 {[%emt 0:03:21]} Bc7 {[%emt 0:02:07]} 26. Rh1 {
[%emt 0:05:25]} Kb7 {[%emt 0:01:23]} 27. Nc1 {[%emt 0:04:27]} Re7 {[%emt 0:00:
00]} 28. Ne2 {[%emt 0:03:33]} Na5 {[%emt 0:01:37]} 29. Nd2 {[%emt 0:02:15]} e5
{[%emt 0:01:26]} 30. dxe5 {[%emt 0:00:36]} Bxe5 {[%emt 0:00:29]} 31. f4 {
[%emt 0:01:44]} Bd6 {[%emt 0:00:27]} 32. Rf1 {[%emt 0:00:18]} Nc4 {[%emt 0:00:
00]} 33. Nxc4 {[%emt 0:00:35]} dxc4+ {[%emt 0:00:04]} 34. Kd2 {[%emt 0:00:09]}
Bc5 {[%emt 0:00:38]} 35. Rf3 {[%emt 0:00:31]} Rd7+ {[%emt 0:00:33]} 36. Kc2 {
[%emt 0:00:56]} Re7 {[%emt 0:00:08]} 37. Ng3 {[%emt 0:01:58]} Re3 {[%emt 0:00:
00]} 38. Rxe3 {[%emt 0:06:09]} Bxe3 {[%emt 0:00:05]} 39. Ne2 {[%emt 0:04:50]}
1/2-1/2

[Event "44th Chess Olympiad Women 2022"]
[Site "Chennai"]
[Date "2022.08.06"]
[Round "8.39"]
[White "Vasquez Jaen, Lourdes Lorena"]
[Black "Vargas, Gabriela"]
[Result "1/2-1/2"]
[WhiteElo "1653"]
[BlackElo "2140"]
[Annotator "NA RC"]
[PlyCount "153"]
[EventDate "2022.??.??"]
[TimeControl "60"]

1. d4 {[%emt 0:00:09]} d5 {[%emt 0:00:19]} 2. Bf4 {[%emt 0:00:19]} c5 {[%emt 0:
00:00]} 3. e3 {[%emt 0:01:40]} Nc6 {[%emt 0:01:12]} 4. Nf3 {[%emt 0:08:35]} Nf6
{[%emt 0:04:10]} 5. c3 {[%emt 0:17:13]} Qb6 {[%emt 0:00:20]} 6. Na3 {[%emt 0:
00:00]} c4 {[%emt 0:09:35]} 7. Qc1 {[%emt 0:04:48]} Qa5 {[%emt 0:18:54]} 8. b4
{[%emt 0:12:21]} Qb6 {[%emt 0:11:01]} 9. Ne5 {[%emt 0:14:24]} Bf5 {[%emt 0:00:
00]} 10. Be2 {[%emt 0:03:24]} h6 {[%emt 0:05:54]} 11. h3 {[%emt 0:03:32]} g5 {
[%emt 0:00:20]} 12. Bh2 {[%emt 0:00:24]} e6 {[%emt 0:03:27]} 13. g4 {[%emt 0:
00:00]} Bh7 {[%emt 0:00:22]} 14. O-O {[%emt 0:00:37]} Be7 {[%emt 0:05:09]} 15.
Bd1 {[%emt 0:22:07]} Nxe5 {[%emt 0:13:41]} 16. Bxe5 {[%emt 0:00:00]} Bd3 {
[%emt 0:00:18]} 17. Re1 {[%emt 0:00:00]} Rg8 {[%emt 0:01:16]} 18. Bxf6 {
[%emt 0:00:00]} Bxf6 {[%emt 0:00:07]} 19. Ba4+ {[%emt 0:00:00]} Kf8 {[%emt 0:
00:00]} 20. Bc2 {[%emt 0:00:00]} Bxc2 {[%emt 0:04:00]} 21. Nxc2 {[%emt 0:00:00]
} h5 {[%emt 0:00:06]} 22. Kg2 {[%emt 0:00:00]} hxg4 {[%emt 0:00:27]} 23. hxg4 {
[%emt 0:00:00]} Rh8 {[%emt 0:00:25]} 24. Rh1 {[%emt 0:00:00]} Rxh1 {[%emt 0:00:
00]} 25. Qxh1 {[%emt 0:00:00]} Kg7 {[%emt 0:02:36]} 26. Qh3 {[%emt 0:00:00]}
Rh8 {[%emt 0:00:20]} 27. Qf3 {[%emt 0:00:00]} Qc6 {[%emt 0:03:31]} 28. a3 {
[%emt 0:00:39]} Qa4 {[%emt 0:00:27]} 29. Qe2 {[%emt 0:01:14]} Qb3 {[%emt 0:00:
00]} 30. Qd2 {[%emt 0:00:14]} Rh4 {[%emt 0:00:21]} 31. f3 {[%emt 0:00:57]} Qb2
{[%emt 0:00:55]} 32. Rh1 {[%emt 0:00:49]} Rxh1 {[%emt 0:00:30]} 33. Kxh1 {
[%emt 0:00:01]} Bd8 {[%emt 0:01:19]} 34. Kg2 {[%emt 0:00:59]} Bc7 {[%emt 0:00:
00]} 35. Kf2 {[%emt 0:00:44]} f6 {[%emt 0:00:35]} 36. Ke2 {[%emt 0:00:19]} Bg3
{[%emt 0:00:40]} 37. a4 {[%emt 0:00:44]} b6 {[%emt 0:01:01]} 38. Ne1 {[%emt 0:
00:00]} Qa1 {[%emt 0:00:29]} 39. Qd1 {[%emt 0:00:27]} Qxc3 {[%emt 0:00:20]} 40.
Nc2 {[%emt 0:00:35]} Bd6 {[%emt 0:00:54]} 41. Qd2 {[%emt 0:04:35]} Qb3 {
[%emt 0:02:07]} 42. a5 {[%emt 0:04:29]} b5 {[%emt 0:00:24]} 43. a6 {[%emt 0:00:
00]} c3 {[%emt 0:08:16]} 44. Qd3 {[%emt 0:00:01]} Bxb4 {[%emt 0:00:30]} 45. e4
{[%emt 0:01:19]} dxe4 {[%emt 0:01:46]} 46. Qxe4 {[%emt 0:00:40]} Be7 {[%emt 0:
00:00]} 47. Ke3 {[%emt 0:04:13]} Bd6 {[%emt 0:04:25]} 48. Qb7+ {[%emt 0:01:39]}
Kh6 {[%emt 0:00:11]} 49. Qc8 {[%emt 0:01:09]} Bf4+ {[%emt 0:00:12]} 50. Kd3 {
[%emt 0:00:36]} e5 {[%emt 0:01:54]} 51. Qh8+ {[%emt 0:01:40]} Kg6 {[%emt 0:00:
00]} 52. Qe8+ {[%emt 0:01:02]} Kg7 {[%emt 0:00:11]} 53. Qd7+ {[%emt 0:01:00]}
Kh6 {[%emt 0:00:12]} 54. Qc8 {[%emt 0:00:36]} Qf7 {[%emt 0:03:22]} 55. Kxc3 {
[%emt 0:00:38]} exd4+ {[%emt 0:04:33]} 56. Kxd4 {[%emt 0:00:41]} Be5+ {[%emt 0:
00:00]} 57. Ke4 {[%emt 0:00:31]} Qh7+ {[%emt 0:00:17]} 58. Ke3 {[%emt 0:00:32]}
Bc7 {[%emt 0:05:10]} 59. Kd2 {[%emt 0:00:30]} Bf4+ {[%emt 0:02:11]} 60. Ke2 {
[%emt 0:00:09]} Qe7+ {[%emt 0:00:07]} 61. Kd3 {[%emt 0:00:41]} Kg7 {[%emt 0:00:
00]} 62. Qb7 {[%emt 0:00:19]} Kf7 {[%emt 0:00:48]} 63. Nd4 {[%emt 0:00:26]}
Qxb7 {[%emt 0:00:22]} 64. axb7 a5 {[%emt 0:00:38]} 65. Nc6 {[%emt 0:01:11]} a4
{[%emt 0:00:31]} 66. b8=Q {[%emt 0:00:18]} Bxb8 {[%emt 0:00:04]} 67. Nxb8 {
[%emt 0:00:01]} a3 {[%emt 0:00:08]} 68. Kc3 {[%emt 0:00:01]} f5 {[%emt 0:00:07]
} 69. Nc6 {[%emt 0:01:01]} Kf6 {[%emt 0:00:40]} 70. Nd4 {[%emt 0:00:53]} fxg4 {
[%emt 0:00:52]} 71. fxg4 {[%emt 0:00:01]} Ke5 {[%emt 0:00:12]} 72. Nxb5 {
[%emt 0:00:20]} a2 {[%emt 0:00:10]} 73. Kb2 {[%emt 0:00:05]} Kf4 {[%emt 0:00:
00]} 74. Nd6 {[%emt 0:00:15]} Kxg4 {[%emt 0:00:09]} 75. Nf7 {[%emt 0:00:04]}
Kf3 {[%emt 0:00:00]} 76. Nxg5+ {[%emt 0:00:07]} Kg4 {[%emt 0:00:00]} 77. Kxa2 {
[%emt 0:00:12]} 1/2-1/2

[Event "44th Chess Olympiad Women 2022"]
[Site "Chennai"]
[Date "2022.08.06"]
[Round "8.40"]
[White "Gamage, Desandhi Dhihansa"]
[Black "Ogbiyoyo, Perpetual Eloho"]
[Result "1-0"]
[WhiteElo "1561"]
[BlackElo "1886"]
[Annotator "NA RC"]
[PlyCount "77"]
[EventDate "2022.??.??"]
[TimeControl "60"]

1. e4 {[%emt 0:00:02]} e5 {[%emt 0:00:11]} 2. Nf3 {[%emt 0:00:04]} Nc6 {
[%emt 0:00:04]} 3. Bc4 {[%emt 0:00:05]} Bc5 {[%emt 0:00:06]} 4. c3 {[%emt 0:00:
00]} Nf6 {[%emt 0:00:18]} 5. d3 {[%emt 0:00:05]} d6 {[%emt 0:01:16]} 6. h3 {
[%emt 0:00:10]} h6 {[%emt 0:00:29]} 7. Bb3 {[%emt 0:00:40]} O-O {[%emt 0:03:13]
} 8. g4 {[%emt 0:03:57]} Nh7 {[%emt 0:01:42]} 9. Rg1 {[%emt 0:04:09]} Be6 {
[%emt 0:00:53]} 10. Bc2 {[%emt 0:02:05]} d5 {[%emt 0:06:54]} 11. Qe2 {[%emt 0:
00:00]} dxe4 {[%emt 0:02:18]} 12. dxe4 {[%emt 0:00:15]} Qe7 {[%emt 0:02:42]}
13. Nbd2 {[%emt 0:01:23]} a6 {[%emt 0:01:05]} 14. Nf1 {[%emt 0:08:15]} b5 {
[%emt 0:03:26]} 15. Ng3 {[%emt 0:05:24]} Rad8 {[%emt 0:02:10]} 16. Nf5 {
[%emt 0:07:51]} Bxf5 {[%emt 0:03:11]} 17. gxf5 {[%emt 0:00:34]} Kh8 {[%emt 0:
00:00]} 18. Qf1 {[%emt 0:14:02]} Bb6 {[%emt 0:07:11]} 19. Qg2 {[%emt 0:11:20]}
Rg8 {[%emt 0:02:41]} 20. a3 {[%emt 0:07:17]} a5 {[%emt 0:01:40]} 21. Bb3 {
[%emt 0:00:38]} b4 {[%emt 0:01:22]} 22. Bd5 {[%emt 0:01:53]} Nb8 {[%emt 0:00:
00]} 23. Bxf7 {[%emt 0:03:29]} Nf6 {[%emt 0:11:37]} 24. Bxg8 {[%emt 0:03:35]}
Rxg8 {[%emt 0:00:09]} 25. Nh4 {[%emt 0:02:49]} Qd6 {[%emt 0:01:10]} 26. Qf3 {
[%emt 0:04:02]} Nbd7 {[%emt 0:01:23]} 27. Be3 {[%emt 0:00:46]} bxc3 {[%emt 0:
00:00]} 28. bxc3 {[%emt 0:00:25]} Qc6 {[%emt 0:04:03]} 29. Bxb6 {[%emt 0:02:27]
} cxb6 {[%emt 0:00:25]} 30. Ng6+ {[%emt 0:00:30]} Kh7 {[%emt 0:00:44]} 31. Ne7
{[%emt 0:00:17]} Qc4 {[%emt 0:02:09]} 32. Nxg8 {[%emt 0:00:45]} Kxg8 {[%emt 0:
00:00]} 33. Rd1 {[%emt 0:00:37]} Nc5 {[%emt 0:00:14]} 34. Qg3 {[%emt 0:09:23]}
Qxe4+ {[%emt 0:00:47]} 35. Kf1 {[%emt 0:00:10]} g5 {[%emt 0:05:03]} 36. fxg6 {
[%emt 0:01:07]} Qc4+ {[%emt 0:02:18]} 37. Kg2 {[%emt 0:00:11]} Ncd7 {[%emt 0:
00:00]} 38. Kh2 {[%emt 0:02:29]} Nh5 {[%emt 0:00:47]} 39. Qg4 {[%emt 0:00:41]}
1-0